bitfinex-derivatives/quotes_BTCF0:USTF0_20250629
["timestamp","ask_amount","ask_price","bid_price","bid_amount"]
[1751206545568,0.93067402,108280.0,108270.0,1.05421291]
[1751206545770,0.93067402,108280.0,108270.0,0.68877109]
[1751206546069,0.93067402,108280.0,108270.0,1.24857109]
[1751206550068,0.93067402,108280.0,108270.0,1.21737109]
[1751206551274,0.93067402,108280.0,108270.0,1.16204739]
[1751206552866,0.93067402,108280.0,108270.0,1.23580497]
[1751206557776,0.93067402,108280.0,108270.0,0.91232679]
[1751206562574,0.93067402,108280.0,108270.0,0.94402679]
[1751206563181,0.93067402,108280.0,108270.0,0.87026921]
[1751206564883,0.93067402,108280.0,108270.0,1.19374739]
[1751206567786,0.60719584,108280.0,108270.0,1.19374739]
[1751206570697,0.60719584,108280.0,108270.0,1.24909549]
[1751206571491,0.60719584,108280.0,108270.0,1.27969549]
[1751206571796,0.60719584,108280.0,108270.0,1.22434739]
[1751206572194,0.54219584,108280.0,108270.0,1.22434739]
[1751206572395,0.54219584,108280.0,108270.0,1.25634739]
[1751206578005,0.54219584,108280.0,108270.0,1.3116963]
[1751206579505,0.54219584,108280.0,108270.0,1.33010497]
[1751206580507,0.54219584,108280.0,108270.0,1.00662679]
[1751206580812,0.86567402,108280.0,108270.0,1.00662679]
[1751206581120,0.86567402,108280.0,108270.0,1.33010497]
[1751206583107,0.86567402,108280.0,108270.0,1.00662679]
[1751206583404,0.86567402,108280.0,108270.0,1.33010497]
[1751206583702,0.54219584,108280.0,108270.0,1.33010497]
[1751206590310,0.54219584,108280.0,108270.0,1.00662679]
[1751206590505,0.54219584,108280.0,108270.0,1.33010497]
[1751206593314,0.54219584,108280.0,108270.0,1.00662679]
[1751206593715,0.54219584,108280.0,108270.0,1.33010497]
[1751206595915,0.54219584,108280.0,108270.0,1.00662679]
[1751206596217,0.54219584,108280.0,108270.0,1.33010497]
[1751206596514,0.54219584,108280.0,108270.0,1.25634739]
[1751206597714,0.54219584,108280.0,108270.0,1.33010497]
[1751206598514,0.54219584,108280.0,108270.0,1.31567016]
[1751206598712,0.54219584,108280.0,108270.0,1.33010497]
[1751206599415,0.54219584,108280.0,108270.0,1.00662679]
[1751206599616,0.54219584,108280.0,108270.0,1.33010497]
[1751206600616,0.54219584,108280.0,108270.0,1.31567016]
[1751206601113,0.54219584,108280.0,108270.0,1.2972586]
[1751206601721,0.21871766,108280.0,108270.0,1.31169341]
[1751206602019,0.54219584,108280.0,108270.0,1.31169341]
[1751206603114,0.51069584,108280.0,108270.0,1.31169341]
[1751206612128,0.51069584,108280.0,108270.0,0.75189341]
[1751206612329,0.51069584,108280.0,108270.0,1.31125341]
[1751206613925,0.51069584,108280.0,108270.0,1.25590739]
[1751206617535,0.18721766,108280.0,108270.0,1.25590739]
[1751206617735,0.51069584,108280.0,108270.0,1.25590739]
[1751206618035,0.83417402,108280.0,108270.0,1.25590739]
[1751206619230,0.83417402,108280.0,108270.0,1.32966497]
[1751206621632,0.0461664,108270.0,108250.0,0.5828043]
[1751206621836,0.0461764,108250.0,108220.0,0.49089814]
[1751206622037,2.89891198,108240.0,108230.0,0.09227443]
[1751206622226,0.1847287,108230.0,108220.0,0.31484394]
[1751206622434,0.57100688,108230.0,108220.0,0.1856698]
[1751206622631,0.54050688,108230.0,108220.0,0.61343801]
[1751206622833,0.54050688,108230.0,108220.0,0.28995983]
[1751206623042,0.56179877,108230.0,108220.0,0.32105983]
[1751206623246,0.54050688,108230.0,108220.0,0.32105983]
[1751206623431,0.56276597,108230.0,108220.0,0.32705983]
[1751206623827,0.56176597,108230.0,108220.0,0.32305983]
[1751206624027,0.57181013,108230.0,108220.0,0.32705983]
[1751206624233,0.56276597,108230.0,108220.0,0.32705983]
[1751206624429,0.54150688,108230.0,108220.0,0.32705983]
[1751206628831,0.54150688,108230.0,108220.0,0.2541698]
[1751206632247,0.1857287,108230.0,108220.0,1.26192616]
[1751206632747,0.50920688,108230.0,108220.0,1.01205307]
[1751206637758,0.1857287,108230.0,108220.0,1.01205307]
[1751206637951,0.50920688,108230.0,108220.0,1.33553125]
[1751206638755,0.1857287,108230.0,108220.0,1.34496621]
[1751206639657,0.1857287,108230.0,108220.0,1.47380621]
[1751206641158,0.001,108230.0,108220.0,1.47380621]
[1751206641652,0.1857287,108230.0,108220.0,1.47380621]
[1751206642358,0.1857287,108230.0,108220.0,1.15032803]
[1751206644659,0.1847261,108240.0,108230.0,0.1847287]
[1751206644859,0.1847261,108240.0,108230.0,1.54030756]
[1751206647059,0.60054068,108250.0,108240.0,0.1847116]
[1751206647272,0.60054068,108250.0,108240.0,0.57018978]
[1751206648657,0.60154068,108250.0,108240.0,0.57418978]
[1751206649264,0.62431306,108250.0,108240.0,0.57418978]
[1751206649564,0.62431306,108250.0,108240.0,0.57618978]
[1751206651860,0.62531306,108250.0,108240.0,0.57918978]
[1751206652066,0.62531306,108250.0,108240.0,0.93998978]
[1751206654667,0.60254068,108250.0,108240.0,0.93998978]
[1751206655760,0.63364068,108250.0,108240.0,0.93998978]
[1751206660069,0.65644754,108250.0,108240.0,0.93998978]
[1751206660571,0.63364068,108250.0,108240.0,0.93998978]
[1751206661972,0.63364068,108250.0,108240.0,0.6165116]
[1751206662168,0.63364068,108250.0,108240.0,0.93998978]
[1751206664772,0.63364068,108250.0,108240.0,0.6165116]
[1751206665773,0.63364068,108250.0,108240.0,0.93998978]
[1751206673577,0.3101625,108250.0,108240.0,0.93998978]
[1751206673779,0.63364068,108250.0,108240.0,0.93998978]
[1751206676282,0.63364068,108250.0,108240.0,0.6165116]
[1751206678778,0.63364068,108250.0,108240.0,0.93998978]
[1751206680286,0.65654484,108250.0,108240.0,0.93998978]
[1751206680880,0.65654484,108250.0,108240.0,0.6165116]
[1751206681785,0.65654484,108250.0,108240.0,0.93998978]
[1751206683983,0.65654484,108250.0,108240.0,0.6165116]
[1751206684283,0.65654484,108250.0,108240.0,0.5848116]
[1751206684485,0.72154484,108250.0,108240.0,0.5848116]
[1751206684783,0.72154484,108250.0,108240.0,0.90828978]
[1751206685383,0.72154484,108250.0,108240.0,0.5848116]
[1751206686182,0.72154484,108250.0,108240.0,1.1439316]
[1751206688988,0.20959866,108250.0,108240.0,1.46740978]
[1751206689182,0.53307684,108250.0,108240.0,1.52940978]
[1751206689985,0.53307684,108250.0,108240.0,0.97028978]
[1751206690186,0.53307684,108250.0,108240.0,1.52936978]
[1751206690485,0.53307684,108250.0,108240.0,0.97028978]
[1751206690687,0.53307684,108250.0,108240.0,1.52936978]
[1751206691383,0.34838234,108250.0,108240.0,1.52936978]
[1751206691594,0.34838234,108250.0,108240.0,1.60273653]
[1751206692187,0.34838234,108250.0,108240.0,1.52936978]
[1751206693283,0.32547818,108250.0,108240.0,1.60273653]
[1751206695179,0.51017278,108250.0,108240.0,1.60273653]
[1751206696786,0.51017278,108250.0,108240.0,1.61717417]
[1751206699287,0.32547818,108250.0,108240.0,1.61717417]
[1751206699886,0.002,108250.0,108240.0,1.61717417]
[1751206700183,0.1866945,108250.0,108240.0,1.61717417]
[1751206701388,0.1866945,108250.0,108240.0,1.94065235]
[1751206701582,0.1866945,108250.0,108240.0,1.61717417]
[1751206704389,0.1866945,108250.0,108240.0,1.54380742]
[1751206704989,0.51017268,108250.0,108240.0,1.54380742]
[1751206706189,0.51017268,108250.0,108240.0,1.61717417]
[1751206706989,0.1866945,108250.0,108240.0,1.61717417]
[1751206708294,0.1866945,108250.0,108240.0,1.74573417]
[1751206708895,0.51017268,108250.0,108240.0,1.74573417]
[1751206713900,0.51017278,108250.0,108240.0,1.74573417]
[1751206718390,0.51017278,108250.0,108240.0,2.10653417]
[1751206722604,0.54287278,108250.0,108240.0,2.10653417]
[1751206723409,0.35817818,108250.0,108240.0,2.10653417]
[1751206723605,0.32547818,108250.0,108240.0,2.10653417]
[1751206726397,0.51017278,108250.0,108240.0,2.10653403]
[1751206732113,0.32547818,108250.0,108240.0,2.10653403]
[1751206734118,0.02489869,108250.0,108240.0,2.35664546]
[1751206734308,0.70815498,108270.0,108250.0,0.1385128]
[1751206734510,0.4148768,108270.0,108260.0,1.42779568]
[1751206734810,0.4148768,108270.0,108260.0,1.44223318]
[1751206735019,0.4148768,108270.0,108260.0,1.118755]
[1751206735710,0.73835498,108270.0,108260.0,1.118755]
[1751206736718,0.69318718,108270.0,108260.0,1.120755]
[1751206736917,0.69318718,108270.0,108260.0,1.44423318]
[1751206737512,0.69318718,108270.0,108260.0,1.44523318]
[1751206740217,0.69318718,108270.0,108260.0,1.121755]
[1751206741415,0.69318718,108270.0,108260.0,1.1073175]
[1751206742930,0.69318718,108270.0,108260.0,1.12175428]
[1751206745222,0.69318718,108270.0,108260.0,1.44523246]
[1751206745519,0.69318718,108270.0,108260.0,1.1387175]
[1751206746225,0.71574899,108270.0,108260.0,1.1387175]
[1751206747925,0.71574899,108270.0,108260.0,1.1073175]
[1751206748127,0.75307081,108270.0,108260.0,0.7464375]
[1751206748329,1.40002717,108270.0,108260.0,0.1876775]
[1751206748924,1.95878717,108270.0,108260.0,0.1876775]
[1751206752333,1.95878717,108270.0,108260.0,0.003]
[1751206752524,1.95878717,108270.0,108260.0,0.1876774]
[1751206753935,1.95878717,108270.0,108260.0,0.003]
[1751206755337,1.95878717,108270.0,108260.0,0.01743695]
[1751206756137,1.95878717,108270.0,108260.0,0.20211445]
[1751206761635,1.63530899,108270.0,108260.0,0.1876775]
[1751206761934,1.63530899,108270.0,108260.0,0.20211452]
[1751206762142,1.63530899,108270.0,108260.0,0.2178775]
[1751206762939,1.63522899,108270.0,108260.0,0.2178775]
[1751206763139,1.07654899,108270.0,108260.0,0.2178775]
[1751206763339,1.63522899,108270.0,108260.0,0.2178775]
[1751206765547,1.63522899,108270.0,108260.0,0.23231445]
[1751206769547,1.63522899,108270.0,108260.0,0.26401445]
[1751206769853,1.07654899,108270.0,108260.0,0.26401445]
[1751206770056,1.63518899,108270.0,108260.0,0.26401445]
[1751206771752,0.98484899,108270.0,108260.0,0.58749263]
[1751206771955,0.62404899,108270.0,108260.0,0.97969263]
[1751206775551,0.20823701,108270.0,108260.0,1.54762125]
[1751206775756,0.53171519,108270.0,108260.0,1.54762125]
[1751206776352,0.20823701,108270.0,108260.0,1.54762125]
[1751206776557,0.53171519,108270.0,108260.0,1.54762125]
[1751206777352,0.20823701,108270.0,108260.0,1.54762125]
[1751206777549,0.02356181,108270.0,108260.0,1.99949943]
[1751206777860,0.53170049,108270.0,108260.0,1.67602125]
[1751206778363,0.20822231,108270.0,108260.0,1.67602125]
[1751206778761,0.20822231,108270.0,108260.0,1.66669263]
[1751206779060,0.02356181,108270.0,108260.0,2.00696933]
[1751206779768,0.02356181,108270.0,108260.0,1.68349115]
[1751206779964,0.34703999,108270.0,108260.0,1.68349115]
[1751206780166,0.001,108270.0,108260.0,2.00696933]
[1751206780359,0.001,108270.0,108260.0,1.68349115]
[1751206780555,0.001,108270.0,108260.0,1.69254502]
[1751206780968,0.001,108270.0,108260.0,2.0160232]
[1751206786872,0.001,108270.0,108260.0,1.36906684]
[1751206787371,0.32447818,108270.0,108260.0,1.69254502]
[1751206788876,0.50913858,108270.0,108260.0,1.69254502]
[1751206791476,0.1856604,108270.0,108260.0,1.69254502]
[1751206791781,0.50913858,108270.0,108260.0,2.0160232]
[1751206795081,0.1856604,108270.0,108260.0,2.0160232]
[1751206795281,0.50913858,108270.0,108260.0,2.0160232]
[1751206799683,0.50913858,108270.0,108260.0,1.36894684]
[1751206799893,0.54003858,108270.0,108260.0,1.69242502]
[1751206800075,0.54003858,108270.0,108260.0,1.68337115]
[1751206800280,0.54003858,108270.0,108260.0,0.60991297]
[1751206800579,1.31137055,108270.0,108260.0,0.59271547]
[1751206802086,1.31137055,108270.0,108260.0,0.77739297]
[1751206802286,1.31137055,108270.0,108260.0,0.21891297]
[1751206802484,1.31137055,108270.0,108260.0,0.59271547]
[1751206802785,1.31137055,108270.0,108260.0,0.77739297]
[1751206803582,1.31137055,108270.0,108260.0,0.03423547]
[1751206804588,1.31137055,108270.0,108260.0,0.01979852]
[1751206804792,0.66441419,108270.0,108260.0,0.01979852]
[1751206804989,1.31137055,108270.0,108260.0,0.01979852]
[1751206818398,1.31137055,108270.0,108260.0,0.003]
[1751206822496,0.66441419,108270.0,108260.0,0.003]
[1751206822699,1.31137055,108270.0,108260.0,0.003]
[1751206830803,1.31137055,108270.0,108260.0,0.036]
[1751206835606,1.31137055,108270.0,108260.0,0.003]
[1751206836105,1.87353055,108270.0,108260.0,0.003]
[1751206859932,2.00373055,108270.0,108260.0,0.003]
[1751206870234,0.1846775,108260.0,108250.0,0.0323]
[1751206870434,1.77428403,108260.0,108250.0,0.0144381]
[1751206870740,1.82045703,108260.0,108250.0,0.0144381]
[1751206871839,1.82045703,108260.0,108250.0,0.0154381]
[1751206872041,1.49797885,108260.0,108250.0,0.0154381]
[1751206872342,1.82145703,108260.0,108250.0,0.0154381]
[1751206872648,1.82145703,108260.0,108250.0,0.001]
[1751206875638,2.51205703,108260.0,108250.0,0.001]
[1751206876736,1.82145703,108260.0,108250.0,0.001]
[1751206877043,2.51209703,108260.0,108250.0,0.001]
[1751206878544,1.82145703,108260.0,108250.0,0.001]
[1751206878739,2.51205703,108260.0,108250.0,0.001]
[1751206881736,1.82145703,108260.0,108250.0,0.001]
[1751206882046,2.51189703,108260.0,108250.0,0.001]
[1751206882643,1.82145703,108260.0,108250.0,0.001]
[1751206882847,2.51189703,108260.0,108250.0,0.001]
[1751206884653,1.82145703,108260.0,108250.0,0.001]
[1751206884838,2.51193703,108260.0,108250.0,0.001]
[1751206885147,1.82145703,108260.0,108250.0,0.001]
[1751206885349,2.51189703,108260.0,108250.0,0.001]
[1751206887749,0.1846945,108250.0,108240.0,0.0948]
[1751206887952,1.30930465,108250.0,108240.0,0.10923929]
[1751206888245,1.30930465,108250.0,108240.0,0.0629]
[1751206888450,1.30930465,108250.0,108240.0,0.0312]
[1751206888649,0.1847116,108240.0,108230.0,0.07999363]
[1751206888945,1.73837993,108240.0,108230.0,0.0962338]
[1751206889152,1.83267993,108240.0,108230.0,0.0962338]
[1751206889749,1.96235993,108240.0,108230.0,0.0962338]
[1751206889955,1.96235993,108240.0,108230.0,0.0648]
[1751206890149,2.32315993,108240.0,108230.0,0.0329]
[1751206890351,2.33239704,108240.0,108230.0,0.0329]
[1751206890952,2.33239704,108240.0,108230.0,0.0359]
[1751206891255,2.33239704,108240.0,108230.0,0.0369]
[1751206891450,2.33239704,108240.0,108230.0,0.0339]
[1751206891645,2.33339704,108240.0,108230.0,0.0339]
[1751206892352,2.33339704,108240.0,108230.0,0.001]
[1751206899351,2.33339704,108240.0,108220.0,0.16962909]
[1751206899352,0.1847287,108230.0,108220.0,0.16962909]
[1751206899556,1.24813885,108230.0,108220.0,0.10712909]
[1751206899751,1.31013885,108230.0,108220.0,0.10712909]
[1751206900558,1.31013885,108230.0,108220.0,0.11012909]
[1751206900858,1.31013885,108230.0,108220.0,0.11112909]
[1751206902460,1.27933885,108230.0,108220.0,0.11112909]
[1751206902959,1.31133885,108230.0,108220.0,0.037524]
[1751206903158,1.31133885,108230.0,108220.0,0.036524]
[1751206903357,1.31233885,108230.0,108220.0,0.034524]
[1751206912064,1.63581703,108230.0,108220.0,0.001924]
[1751206912363,1.31233885,108230.0,108220.0,0.001924]
[1751206914265,1.63581703,108230.0,108220.0,0.001924]
[1751206915366,1.31233885,108230.0,108220.0,0.001924]
[1751206923469,1.31233885,108230.0,108220.0,0.032224]
[1751206924272,0.66538249,108230.0,108220.0,0.032224]
[1751206924475,1.87405885,108230.0,108220.0,0.032224]
[1751206924667,1.87405885,108230.0,108220.0,0.062524]
[1751206924868,1.87405885,108230.0,108220.0,0.092924]
[1751206930484,1.94073885,108230.0,108220.0,0.092924]
[1751206935181,1.97253885,108230.0,108220.0,0.092924]
[1751206939077,2.00473885,108230.0,108220.0,0.092924]
[1751206939277,2.00473885,108230.0,108220.0,0.062624]
[1751206945285,2.00473885,108230.0,108220.0,0.032224]
[1751206947891,2.32821703,108230.0,108220.0,0.032224]
[1751206948193,2.32821703,108230.0,108220.0,0.001924]
[1751206948484,0.1847457,108220.0,108210.0,0.17205357]
[1751206948681,1.20923403,108220.0,108210.0,0.18649702]
[1751206948876,1.24003403,108220.0,108210.0,0.18649702]
[1751206949290,1.27073403,108220.0,108210.0,0.18649702]
[1751206949884,1.27073403,108220.0,108210.0,0.18749702]
[1751206950388,1.27073403,108220.0,108210.0,0.18949702]
[1751206951591,1.27073403,108220.0,108210.0,0.15649702]
[1751206952892,1.27073403,108220.0,108210.0,0.12399702]
[1751206954192,1.27073403,108220.0,108210.0,0.13798085]
[1751206957893,1.27073403,108220.0,108210.0,0.10588085]
[1751206958294,1.63153403,108220.0,108210.0,0.10588085]
[1751206960195,1.63153403,108220.0,108210.0,0.13768085]
[1751206973313,1.63153403,108220.0,108210.0,0.32244365]
[1751206975212,1.63153403,108220.0,108210.0,0.13768085]
[1751206976213,1.63153403,108220.0,108210.0,0.19302642]
[1751206976612,1.27073403,108220.0,108210.0,0.19302642]
[1751206976815,1.63153403,108220.0,108210.0,0.19302642]
[1751206977318,1.63153403,108220.0,108210.0,0.37778922]
[1751206978514,1.63153403,108220.0,108210.0,0.19302642]
[1751206981119,1.63153403,108220.0,108210.0,0.17858297]
[1751206982613,1.63153403,108220.0,108210.0,0.16459914]
[1751206982812,1.63153403,108220.0,108210.0,0.17904305]
[1751206983517,1.63153403,108220.0,108210.0,0.19310079]
[1751206985618,0.66109949,108220.0,108210.0,0.37786359]
[1751206985821,1.63153403,108220.0,108210.0,0.37786359]
[1751206990818,1.30805585,108220.0,108210.0,0.37786359]
[1751206992426,1.63153403,108220.0,108210.0,0.37786359]
[1751206992723,1.30805585,108220.0,108210.0,0.37786359]
[1751206993726,0.66109949,108220.0,108210.0,0.37786359]
[1751206993922,1.30805585,108220.0,108210.0,0.37786359]
[1751206994122,1.21505585,108220.0,108210.0,0.37786359]
[1751206994422,1.21505585,108220.0,108210.0,0.44146359]
[1751206995825,1.24575585,108220.0,108210.0,0.44146359]
[1751206996420,1.27765585,108220.0,108210.0,0.44146359]
[1751206996616,1.27765585,108220.0,108210.0,0.38611802]
[1751206997625,1.84033585,108220.0,108210.0,0.38611802]
[1751206998125,1.84033585,108220.0,108210.0,0.44146359]
[1751206999130,1.84033585,108220.0,108210.0,0.38611802]
[1751206999728,2.16381403,108220.0,108210.0,0.38611802]
[1751206999928,2.16381403,108220.0,108210.0,0.35371802]
[1751207000223,2.19671403,108220.0,108210.0,0.35371802]
[1751207000421,2.19671403,108220.0,108210.0,0.16895522]
[1751207001352,2.19671403,108220.0,108210.0,0.13775522]
[1751207001922,2.19671403,108220.0,108210.0,0.12369748]
[1751207002124,2.19671403,108220.0,108210.0,0.13771642]
[1751207004130,1.22627949,108220.0,108210.0,0.13771642]
[1751207004326,2.19671403,108220.0,108210.0,0.13771642]
[1751207004827,2.19671403,108220.0,108210.0,0.10591642]
[1751207007118,2.19671403,108220.0,108210.0,0.03146285]
[1751207007322,0.1847628,108210.0,108200.0,0.07211151]
[1751207007532,1.63175113,108210.0,108200.0,0.04533302]
[1751207007729,3.26219113,108210.0,108200.0,0.04533302]
[1751207008033,2.93871295,108210.0,108200.0,0.04533302]
[1751207008731,1.43871295,108210.0,108200.0,0.04533302]
[1751207009130,1.43971295,108210.0,108200.0,0.04833302]
[1751207009331,1.43971295,108210.0,108200.0,0.05033302]
[1751207010228,1.43971295,108210.0,108200.0,0.03588858]
[1751207013036,1.76319113,108210.0,108200.0,0.02176594]
[1751207013239,2.00215295,108210.0,108200.0,0.02176594]
[1751207018332,1.30927295,108210.0,108200.0,0.02176594]
[1751207018533,2.00191295,108210.0,108200.0,0.02176594]
[1751207019338,2.00191295,108210.0,108200.0,0.0359476]
[1751207024044,1.35495659,108210.0,108200.0,0.02176594]
[1751207024246,1.21607295,108210.0,108200.0,0.20654584]
[1751207024444,1.09395477,108210.0,108200.0,0.30194584]
[1751207024636,1.41743295,108210.0,108200.0,0.30194584]
[1751207024832,1.41743295,108210.0,108200.0,0.31615133]
[1751207025033,0.85527295,108210.0,108200.0,0.31615133]
[1751207029637,0.85527295,108210.0,108200.0,0.13137143]
[1751207029839,0.85527295,108210.0,108200.0,0.31615133]
[1751207031949,0.85527295,108210.0,108200.0,0.13137143]
[1751207032147,0.88707295,108210.0,108200.0,0.14581648]
[1751207033348,1.24135113,108210.0,108200.0,0.03365054]
[1751207033550,1.27867295,108210.0,108200.0,0.03365054]
[1751207035246,1.63545113,108210.0,108200.0,0.03365054]
[1751207035561,1.63545113,108210.0,108200.0,0.01920549]
[1751207038050,1.63545113,108210.0,108200.0,0.005]
[1751207039664,0.18478,108200.0,108190.0,0.00092426]
[1751207039855,1.93550833,108200.0,108190.0,0.01522103]
[1751207040955,1.93750833,108200.0,108190.0,0.02222103]
[1751207042566,2.29830833,108200.0,108190.0,0.02222103]
[1751207043954,2.29930833,108200.0,108190.0,0.01822103]
[1751207044153,2.30030833,108200.0,108190.0,0.01622103]
[1751207045459,2.33230833,108200.0,108190.0,0.01622103]
[1751207046161,2.33230833,108200.0,108190.0,0.00192426]
[1751207046360,2.33230833,108200.0,108190.0,0.01613879]
[1751207048757,2.33230833,108200.0,108190.0,0.00192426]
[1751207049864,0.184797,108190.0,108180.0,0.01698197]
[1751207050064,1.72399033,108190.0,108180.0,0.01427372]
[1751207050366,1.81639613,108190.0,108180.0,0.01427372]
[1751207051769,1.81739613,108190.0,108180.0,0.01827372]
[1751207052857,1.81739613,108190.0,108180.0,0.004]
[1751207054776,1.49391795,108190.0,108180.0,0.004]
[1751207055975,2.05655795,108190.0,108180.0,0.004]
[1751207056163,1.99375795,108190.0,108180.0,0.0972]
[1751207056365,1.96355795,108190.0,108180.0,0.0972]
[1751207062377,1.96355795,108190.0,108180.0,0.11156833]
[1751207067166,1.99595795,108190.0,108180.0,0.11156833]
[1751207069269,1.99595795,108190.0,108180.0,0.12601666]
[1751207069469,2.02715795,108190.0,108180.0,0.12601666]
[1751207069982,2.02715795,108190.0,108180.0,0.11156833]
[1751207071689,2.02715795,108190.0,108180.0,0.08056833]
[1751207071984,2.05775795,108190.0,108180.0,0.04996833]
[1751207072182,2.05775795,108190.0,108180.0,0.06441665]
[1751207077090,2.05775795,108190.0,108180.0,0.04996833]
[1751207078385,2.05775795,108190.0,108180.0,0.06441665]
[1751207083906,2.18779795,108190.0,108180.0,0.06441665]
[1751207093905,2.18779795,108190.0,108180.0,0.04996833]
[1751207100015,2.18779795,108190.0,108180.0,0.06441702]
[1751207103120,2.18779795,108190.0,108180.0,0.03281702]
[1751207103721,2.18779795,108190.0,108180.0,0.01836833]
[1751207105513,2.51127613,108190.0,108180.0,0.01836833]
[1751207107225,0.184814,108180.0,108170.0,0.01706222]
[1751207107425,1.27290233,108180.0,108170.0,0.01706222]
[1751207107625,0.1848312,108170.0,108160.0,0.51544487]
[1751207107823,1.44560135,108170.0,108160.0,0.52989409]
[1751207109027,1.44660135,108170.0,108160.0,0.57428722]
[1751207109225,1.51230135,108170.0,108160.0,0.57428722]
[1751207110022,1.64174135,108170.0,108160.0,0.54188722]
[1751207110215,1.64274135,108170.0,108160.0,0.54188722]
[1751207111629,1.65186899,108170.0,108160.0,0.54188722]
[1751207112825,1.65186899,108170.0,108160.0,0.18108722]
[1751207113025,1.65186899,108170.0,108160.0,0.12574165]
[1751207113229,1.65186899,108170.0,108160.0,0.21318722]
[1751207113428,1.65186899,108170.0,108160.0,0.15784165]
[1751207115730,1.65186899,108170.0,108160.0,0.05114852]
[1751207115926,2.01266899,108170.0,108160.0,0.01994852]
[1751207116328,2.01266899,108170.0,108160.0,0.0054993]
[1751207117424,2.33514717,108170.0,108160.0,0.0034993]
[1751207117623,2.01166899,108170.0,108160.0,0.0034993]
[1751207118023,2.33514717,108170.0,108160.0,0.0034993]
[1751207119033,2.01166899,108170.0,108160.0,0.01789588]
[1751207121732,2.33514717,108170.0,108160.0,0.01789588]
[1751207130328,2.33514717,108170.0,108160.0,0.0034993]
[1751207130937,2.01166899,108170.0,108160.0,0.0034993]
[1751207131432,1.55498899,108170.0,108160.0,0.01776439]
[1751207131638,1.55498899,108170.0,108160.0,0.11266439]
[1751207132054,2.23926717,108170.0,108160.0,0.01776439]
[1751207132234,2.30506717,108170.0,108160.0,0.01776439]
[1751207132437,2.33576717,108170.0,108160.0,0.01776439]
[1751207133735,2.33576717,108170.0,108160.0,0.0034993]
[1751207134040,2.33576717,108170.0,108160.0,0.01781013]
[1751207135044,2.33576717,108170.0,108160.0,0.0034993]
[1751207135339,2.33576717,108170.0,108160.0,0.01782345]
[1751207135843,2.33576717,108170.0,108160.0,0.0034993]
[1751207136442,2.33576717,108170.0,108160.0,0.01782441]
[1751207136935,2.01228899,108170.0,108160.0,0.01782441]
[1751207137337,2.01228899,108170.0,108160.0,0.0669993]
[1751207138935,2.33576717,108170.0,108160.0,0.0034993]
[1751207139137,2.33572717,108170.0,108160.0,0.0034993]
[1751207139337,2.01224899,108170.0,108160.0,0.0034993]
[1751207140039,2.01224899,108170.0,108160.0,0.0339993]
[1751207142739,1.25826899,108170.0,108160.0,0.04834751]
[1751207142946,1.23151081,108170.0,108160.0,0.0973993]
[1751207143143,1.55498899,108170.0,108160.0,0.11161234]
[1751207143446,1.55498899,108170.0,108160.0,0.29646054]
[1751207144044,0.86446899,108170.0,108160.0,0.11161234]
[1751207144244,1.42550899,108170.0,108160.0,0.11161234]
[1751207144545,0.86446899,108170.0,108160.0,0.11161234]
[1751207144745,1.42550899,108170.0,108160.0,0.11161234]
[1751207145345,1.45640899,108170.0,108160.0,0.11161234]
[1751207145549,1.48900899,108170.0,108160.0,0.11161234]
[1751207145852,1.16535523,108170.0,108160.0,0.11161234]
[1751207146051,1.52615523,108170.0,108160.0,0.01771234]
[1751207146347,1.55715523,108170.0,108160.0,0.01771234]
[1751207146644,1.55715523,108170.0,108160.0,0.05041234]
[1751207149647,1.55715523,108170.0,108160.0,0.01771234]
[1751207150353,1.88045783,108170.0,108160.0,0.01771234]
[1751207150854,1.55715523,108170.0,108160.0,0.01771234]
[1751207155857,1.55715523,108170.0,108160.0,0.0034993]
[1751207157257,1.55715523,108170.0,108160.0,0.01786155]
[1751207159960,1.55715523,108170.0,108160.0,0.0034993]
[1751207160258,1.91795523,108170.0,108160.0,0.0034993]
[1751207163168,1.19635523,108170.0,108160.0,0.0034993]
[1751207163461,1.91795523,108170.0,108160.0,0.0034993]
[1751207166065,1.95437523,108170.0,108160.0,0.08109469]
[1751207166363,1.95437523,108170.0,108160.0,0.11419469]
[1751207167261,1.95437523,108170.0,108160.0,0.12864649]
[1751207167868,1.58564959,108170.0,108160.0,0.12864649]
[1751207168170,2.27820959,108170.0,108160.0,0.12864649]
[1751207171481,1.58564959,108170.0,108160.0,0.12864649]
[1751207171674,1.58564959,108170.0,108160.0,0.29904299]
[1751207171880,2.27792959,108170.0,108160.0,0.11419469]
[1751207172473,2.27792959,108170.0,108160.0,0.29904299]
[1751207172673,2.27792959,108170.0,108160.0,0.11419469]
[1751207175888,1.55632959,108170.0,108160.0,0.11419469]
[1751207176080,1.91712959,108170.0,108160.0,0.11419469]
[1751207178287,1.27059263,108170.0,108160.0,0.29904289]
[1751207178480,1.91712959,108170.0,108160.0,0.29904289]
[1751207178685,1.55632959,108170.0,108160.0,0.29904289]
[1751207180883,0.99420959,108170.0,108160.0,0.29904289]
[1751207181183,1.55708959,108170.0,108160.0,0.29904289]
[1751207188984,0.91055263,108170.0,108160.0,0.29904289]
[1751207189184,1.55708959,108170.0,108160.0,0.20274289]
[1751207189486,2.01198959,108170.0,108160.0,0.01789469]
[1751207191485,2.33525807,108170.0,108160.0,0.01789469]
[1751207191790,2.01198959,108170.0,108160.0,0.01789469]
[1751207195090,2.01198959,108170.0,108160.0,0.01776728]
[1751207199096,1.65118959,108170.0,108160.0,0.01776728]
[1751207199397,2.01198959,108170.0,108160.0,0.01776728]
[1751207200398,2.33525807,108170.0,108160.0,0.01776728]
[1751207201299,2.01198959,108170.0,108160.0,0.01776728]
[1751207203001,2.33525807,108170.0,108160.0,0.01776728]
[1751207203197,2.01198959,108170.0,108160.0,0.01776728]
[1751207208207,2.33525807,108170.0,108160.0,0.01776728]
[1751207209003,2.01198959,108170.0,108160.0,0.01776728]
[1751207209599,2.33525807,108170.0,108160.0,0.01776728]
[1751207211008,2.01198959,108170.0,108160.0,0.01776728]
[1751207211802,2.33525807,108170.0,108160.0,0.01776728]
[1751207213306,1.97445807,108170.0,108160.0,0.01776728]
[1751207213501,2.33525807,108170.0,108160.0,0.01776728]
[1751207219709,2.33525807,108170.0,108160.0,0.0034993]
[1751207222613,2.69605807,108170.0,108160.0,0.0034993]
[1751207234016,1.97445807,108170.0,108160.0,0.0034993]
[1751207234314,2.69605807,108170.0,108160.0,0.0034993]
[1751207236124,1.97445807,108170.0,108160.0,0.0034993]
[1751207236419,2.69605807,108170.0,108160.0,0.0034993]
[1751207238927,0.1848483,108160.0,108150.0,0.0977]
[1751207239143,1.53800753,108160.0,108150.0,0.11191986]
[1751207240427,1.53900753,108160.0,108150.0,0.11491986]
[1751207240628,1.54000753,108160.0,108150.0,0.11491986]
[1751207242527,1.57110753,108160.0,108150.0,0.08221986]
[1751207242731,1.63200753,108160.0,108150.0,0.04921986]
[1751207243826,1.63200753,108160.0,108150.0,0.035]
[1751207244027,1.63200753,108160.0,108150.0,0.033]
[1751207244224,1.63200753,108160.0,108150.0,0.04730347]
[1751207244419,1.63200753,108160.0,108150.0,0.033]